[Event "NJSK 2018 Meisjes C"]
[Site "Assen, Netherlands"]
[Date "2018.05.03"]
[Round "5.5"]
[White "Van Essen, Marieke"]
[Black "Honkoop, Stella"]
[Result "1/2-1/2"]
[TimeControl "40/90m+30m+30sec/move"]
[WhiteElo "1282"]
[BlackElo "1583"]

1. e4 {[%clk 01:30:59]} {[%emt 18:35:11]} d6 {[%clk 01:30:54]} {[%emt
00:00:06]} 2. c4 {[%clk 01:31:24]} {[%emt 00:00:06]} Nf6 {[%clk 01:31:06]}
{[%emt 00:00:17]} 3. Nc3 {[%clk 01:31:50]} {[%emt 00:00:04]} Nbd7 {[%clk
01:31:22]} {[%emt 00:00:15]} 4. Nf3 {[%clk 01:32:11]} {[%emt 00:00:09]} e5
{[%clk 01:31:23]} {[%emt 00:00:29]} 5. d3 {[%clk 01:32:21]} {[%emt 00:00:19]}
c6 {[%clk 01:31:08]} {[%emt 00:00:45]} 6. Be2 {[%clk 01:32:27]} {[%emt
00:00:24]} Be7 {[%clk 01:31:25]} {[%emt 00:00:14]} 7. O-O {[%clk 01:32:47]}
{[%emt 00:00:10]} h6 {[%clk 01:30:30]} {[%emt 00:01:24]} 8. Bd2 {[%clk
01:33:06]} {[%emt 00:00:11]} Nf8 {[%clk 01:29:48]} {[%emt 00:01:12]} 9. a3
{[%clk 01:31:47]} {[%emt 00:01:49]} g5 {[%clk 01:24:42]} {[%emt 00:05:37]} 10.
Kh1 {[%clk 01:26:01]} {[%emt 00:06:15]} Ng6 {[%clk 01:23:44]} {[%emt 00:01:29]}
11. b4 {[%clk 01:22:43]} {[%emt 00:03:47]} Bd7 {[%clk 01:10:22]} {[%emt
00:13:52]} 12. b5 {[%clk 01:18:58]} {[%emt 00:04:15]} Qc8 {[%clk 01:00:50]}
{[%emt 00:10:03]} 13. a4 {[%clk 01:13:31]} {[%emt 00:05:56]} a5 {[%clk
00:57:23]} {[%emt 00:03:57]} 14. bxa6 {[%clk 01:10:58]} {[%emt 00:03:04]} Rxa6
{[%clk 00:52:55]} {[%emt 00:04:57]} 15. Rb1 {[%clk 01:09:55]} {[%emt 00:01:33]}
Nf4 {[%clk 00:51:49]} {[%emt 00:01:36]} 16. Bxf4 {[%clk 01:02:27]} {[%emt
00:07:57]} gxf4 {[%clk 00:51:02]} {[%emt 00:01:17]} 17. Rg1 {[%clk 01:02:31]}
{[%emt 00:00:26]} Rg8 {[%clk 00:44:23]} {[%emt 00:07:09]} 18. Nd2 {[%clk
00:59:50]} {[%emt 00:03:12]} Ra7 {[%clk 00:42:22]} {[%emt 00:02:32]} 19. Bf3
{[%clk 00:58:11]} {[%emt 00:02:07]} Rg5 {[%clk 00:39:06]} {[%emt 00:03:47]} 20.
g3 {[%clk 00:54:13]} {[%emt 00:04:28]} Bg4 {[%clk 00:34:54]} {[%emt 00:04:42]}
21. Qe2 {[%clk 00:52:50]} {[%emt 00:01:53]} h5 {[%clk 00:31:32]} {[%emt
00:03:53]} 22. Bxg4 {[%clk 00:52:57]} {[%emt 00:00:22]} hxg4 {[%clk 00:31:41]}
{[%emt 00:00:21]} 23. Nb3 {[%clk 00:49:33]} {[%emt 00:03:54]} Rh5 {[%clk
00:30:45]} {[%emt 00:01:25]} 24. f3 {[%clk 00:47:54]} {[%emt 00:02:10]} gxf3
{[%clk 00:28:15]} {[%emt 00:03:01]} 25. Qxf3 {[%clk 00:48:11]} {[%emt
00:00:12]} Qh3 {[%clk 00:28:27]} {[%emt 00:00:18]} 26. Rb2 {[%clk 00:46:02]}
{[%emt 00:02:39]} Ng4 {[%clk 00:26:53]} {[%emt 00:02:04]} 27. Qg2 {[%clk
00:45:24]} {[%emt 00:01:07]} f3 {[%clk 00:25:55]} {[%emt 00:01:28]} 28. Qxh3
{[%clk 00:44:48]} {[%emt 00:01:05]} Rxh3 {[%clk 00:26:21]} {[%emt 00:00:05]} 29.
Rf1 {[%clk 00:42:30]} {[%emt 00:02:48]} f2 {[%clk 00:24:24]} {[%emt 00:02:28]}
30. Kg2 {[%clk 00:42:07]} {[%emt 00:00:52]} Rh6 {[%clk 00:23:03]} {[%emt
00:01:52]} 31. Re2 {[%clk 00:40:26]} {[%emt 00:02:11]} Bg5 {[%clk 00:21:23]}
{[%emt 00:02:10]} 32. Nd1 {[%clk 00:39:48]} {[%emt 00:01:08]} Nxh2 {[%clk
00:18:22]} {[%emt 00:03:30]} 33. Rfxf2 {[%clk 00:38:50]} {[%emt 00:01:28]} Ng4
{[%clk 00:18:03]} {[%emt 00:00:50]} 34. Rf5 {[%clk 00:37:37]} {[%emt 00:01:43]}
Be7 {[%clk 00:16:26]} {[%emt 00:02:06]} 35. a5 {[%clk 00:31:15]} {[%emt
00:06:52]} Rh2+ {[%clk 00:13:54]} {[%emt 00:03:03]} 36. Kf3 {[%clk 00:27:27]}
{[%emt 00:04:18]} Rxe2 {[%clk 00:13:53]} {[%emt 00:00:30]} 37. Kxe2 {[%clk
00:27:51]} {[%emt 00:00:06]} Bd8 {[%clk 00:10:08]} {[%emt 00:01:41]} 38. c5
{[%clk 00:26:59]} {[%emt 00:03:57]} Be7 {[%clk 00:08:54]} {[%emt 00:01:44]} 39.
Kf3 {[%clk 00:25:49]} {[%emt 00:01:39]} Nh6 {[%clk 00:09:03]} {[%emt 00:00:21]}
40. Rh5 {[%clk 00:26:06]} {[%emt 00:00:14]} Ng8 {[%clk 00:09:11]} {[%emt
00:00:22]} 41. Ne3 {[%clk 00:25:10]} {[%emt 00:01:26]} f6 {[%clk 00:08:14]}
{[%emt 00:01:27]} 42. Nf5 {[%clk 00:23:58]} {[%emt 00:01:41]} dxc5 {[%clk
00:05:24]} {[%emt 00:03:21]} 43. Nxe7 {[%clk 00:22:54]} {[%emt 00:01:34]} Nxe7
{[%clk 00:02:58]} {[%emt 00:02:55]} 44. Nxc5 {[%clk 00:23:03]} {[%emt
00:00:22]} Rxa5 {[%clk 00:29:33]} {[%emt 00:03:55]} 45. Nxb7 {[%clk 00:52:54]}
{[%emt 00:00:39]} Ra1 {[%clk 00:28:54]} {[%emt 00:01:09]} 46. Rh2 {[%clk
00:48:52]} {[%emt 00:04:32]} Ra7 {[%clk 00:27:04]} {[%emt 00:02:20]} 47. Nc5
{[%emt 00:04:01]} 1/2-1/2

[Event "NJSK 2018 Meisjes C"]
[Site "Assen, Netherlands"]
[Date "2018.05.03"]
[Round "5.6"]
[White "Den Heijer, Rolinde"]
[Black "Cordes, Jule"]
[Result "1-0"]
[TimeControl "40/90m+30m+30sec/move"]
[WhiteElo "1538"]
[BlackElo "1551"]

1. e4 {[%clk 01:30:58]} {[%emt 00:00:01]} e5 {[%clk 01:30:54]} {[%emt
00:00:07]} 2. Nf3 {[%clk 01:31:23]} {[%emt 00:00:04]} Nc6 {[%clk 01:31:11]}
{[%emt 00:00:13]} 3. Bc4 {[%clk 01:31:37]} {[%emt 00:00:16]} Bc5 {[%clk
01:31:29]} {[%emt 00:00:11]} 4. Nc3 {[%clk 01:31:52]} {[%emt 00:00:17]} d6
{[%clk 01:31:35]} {[%emt 00:00:23]} 5. d3 {[%clk 01:32:06]} {[%emt 00:00:16]}
Bg4 {[%clk 01:29:29]} {[%emt 00:02:36]} 6. h3 {[%clk 01:31:17]} {[%emt
00:01:20]} Bh5 {[%clk 01:28:58]} {[%emt 00:01:01]} 7. Bg5 {[%clk 01:29:35]}
{[%emt 00:02:12]} Qxg5 {[%clk 01:20:05]} {[%emt 00:09:23]} 8. Nxg5 {[%clk
01:29:46]} {[%emt 00:00:18]} Bxd1 {[%clk 01:20:21]} {[%emt 00:00:13]} 9. Bxf7+
{[%clk 01:28:22]} {[%emt 00:01:55]} Kf8 {[%clk 01:20:12]} {[%emt 00:00:37]} 10.
Rxd1 {[%clk 01:28:10]} {[%emt 00:00:44]} h6 {[%clk 01:19:59]} {[%emt 00:00:43]}
11. Bxg8 {[%clk 01:27:58]} {[%emt 00:00:42]} Kxg8 {[%clk 01:20:00]} {[%emt
00:00:28]} 12. Ne6 {[%clk 01:27:59]} {[%emt 00:00:30]} Bb6 {[%clk 01:19:54]}
{[%emt 00:00:28]} 13. f4 {[%clk 01:23:44]} {[%emt 00:04:53]} Kf7 {[%clk
01:15:40]} {[%emt 00:04:41]} 14. f5 {[%clk 01:23:23]} {[%emt 00:00:54]} Nb4
{[%clk 01:07:36]} {[%emt 00:08:33]} 15. Kd2 {[%clk 01:19:18]} {[%emt 00:04:36]}
Ba5 {[%clk 01:06:10]} {[%emt 00:01:53]} 16. Kc1 {[%clk 01:12:08]} {[%emt
00:07:43]} a6 {[%clk 01:00:06]} {[%emt 00:06:34]} 17. a3 {[%clk 01:07:59]}
{[%emt 00:04:39]} Nc6 {[%clk 00:59:37]} {[%emt 00:00:59]} 18. b4 {[%clk
01:07:26]} {[%emt 00:01:04]} Bb6 {[%clk 00:59:49]} {[%emt 00:00:18]} 19. Nd5
{[%clk 01:07:34]} {[%emt 00:00:22]} Rac8 {[%clk 00:58:54]} {[%emt 00:01:20]} 20.
c3 {[%clk 01:06:59]} {[%emt 00:01:10]} Na7 {[%clk 00:54:54]} {[%emt 00:04:28]}
21. a4 {[%clk 01:06:39]} {[%emt 00:00:51]} a5 {[%clk 00:54:30]} {[%emt
00:00:53]} 22. b5 {[%clk 01:04:59]} {[%emt 00:02:11]} Rhg8 {[%clk 00:50:03]}
{[%emt 00:04:54]} 23. Rhf1 {[%clk 01:00:10]} {[%emt 00:05:22]} h5 {[%clk
00:46:17]} {[%emt 00:04:16]} 24. g4 {[%clk 00:58:08]} {[%emt 00:02:32]} hxg4
{[%clk 00:43:53]} {[%emt 00:02:54]} 25. hxg4 {[%clk 00:58:29]} {[%emt
00:00:09]} Rh8 {[%clk 00:43:52]} {[%emt 00:00:22]} 26. Rh1 {[%clk 00:58:29]}
{[%emt 00:00:39]} Kg8 {[%clk 00:36:23]} {[%emt 00:07:55]} 27. Ne7+ {[%clk
00:58:25]} {[%emt 00:00:38]} Kf7 {[%clk 00:36:25]} {[%emt 00:00:27]} 28. Nxc8
{[%clk 00:58:47]} {[%emt 00:00:09]} Rxc8 {[%clk 00:36:47]} {[%emt 00:00:08]} 29.
Rh7 {[%clk 00:58:54]} {[%emt 00:00:22]} Rg8 {[%clk 00:36:34]} {[%emt 00:00:40]}
30. Rdh1 {[%clk 00:56:12]} {[%emt 00:03:15]} Nc8 {[%clk 00:35:37]} {[%emt
00:01:26]} 31. Rh8 {[%clk 00:55:19]} {[%emt 00:01:25]} Ne7 {[%clk 00:33:39]}
{[%emt 00:02:29]} 32. R1h7 {[%clk 00:54:03]} {[%emt 00:01:45]} Rxh8 {[%clk
00:30:36]} {[%emt 00:03:33]} 33. Rxh8 {[%clk 00:53:48]} {[%emt 00:00:44]} g6
{[%clk 00:30:38]} {[%emt 00:00:28]} 34. Rf8# {[%emt 00:01:29]} 1-0

[Event "NJSK 2018 Meisjes C"]
[Site "Assen, Netherlands"]
[Date "2018.05.03"]
[Round "5.7"]
[White "Morote, Luna"]
[Black "Arnold, Kiri"]
[Result "1/2-1/2"]
[TimeControl "40/90m+30m+30sec/move"]
[WhiteElo "1415"]
[BlackElo "1340"]

1. e4 {[%clk 01:30:58]} c5 {[%clk 01:30:55]} {[%emt 00:00:06]} 2. Nf3 {[%clk
01:31:24]} {[%emt 00:00:04]} d6 {[%clk 01:31:23]} {[%emt 00:00:03]} 3. d4
{[%clk 01:31:49]} {[%emt 00:00:05]} cxd4 {[%clk 01:31:49]} {[%emt 00:00:03]} 4.
Nxd4 {[%clk 01:32:15]} {[%emt 00:00:04]} Nf6 {[%clk 01:32:13]} {[%emt
00:00:06]} 5. Nc3 {[%clk 01:32:41]} {[%emt 00:00:04]} a6 {[%clk 01:32:38]}
{[%emt 00:00:05]} 6. h3 {[%clk 01:33:07]} {[%emt 00:00:04]} e5 {[%clk
01:32:52]} {[%emt 00:00:16]} 7. Nde2 {[%clk 01:33:33]} {[%emt 00:00:04]} b5
{[%clk 01:33:07]} {[%emt 00:00:15]} 8. a3 {[%clk 01:29:05]} {[%emt 00:04:58]}
Bb7 {[%clk 01:31:50]} {[%emt 00:01:47]} 9. Ng3 {[%clk 01:25:15]} {[%emt
00:04:20]} d5 {[%clk 01:28:08]} {[%emt 00:04:13]} 10. exd5 {[%clk 01:25:10]}
{[%emt 00:00:33]} Nxd5 {[%clk 01:27:48]} {[%emt 00:00:51]} 11. Nxd5 {[%clk
01:23:55]} {[%emt 00:01:45]} Qxd5 {[%clk 01:27:59]} {[%emt 00:00:19]} 12. Qxd5
{[%clk 01:23:28]} {[%emt 00:00:58]} Bxd5 {[%clk 01:28:25]} {[%emt 00:00:03]} 13.
Be3 {[%clk 01:23:17]} {[%emt 00:00:41]} Nc6 {[%clk 01:26:32]} {[%emt 00:02:23]}
14. O-O-O {[%clk 01:22:30]} {[%emt 00:01:16]} Rd8 {[%clk 01:25:29]} {[%emt
00:01:35]} 15. f3 {[%clk 01:20:17]} {[%emt 00:02:41]} f6 {[%clk 01:19:08]}
{[%emt 00:06:52]} 16. Bd3 {[%clk 01:19:34]} {[%emt 00:01:12]} Kf7 {[%clk
01:07:34]} {[%emt 00:12:05]} 17. Rd2 {[%clk 01:15:03]} {[%emt 00:05:00]} Be7
{[%clk 01:05:09]} {[%emt 00:02:57]} 18. Rhd1 {[%clk 01:15:05]} {[%emt
00:00:27]} Be6 {[%clk 00:59:49]} {[%emt 00:05:49]} 19. Be4 {[%clk 01:13:11]}
{[%emt 00:02:24]} Nb8 {[%clk 00:51:26]} {[%emt 00:08:54]} 20. Kb1 {[%clk
01:06:35]} {[%emt 00:07:05]} Rxd2 {[%clk 00:42:08]} {[%emt 00:09:48]} 21. Rxd2
{[%clk 01:06:18]} {[%emt 00:00:48]} Rd8 {[%clk 00:40:42]} {[%emt 00:01:55]} 22.
Rxd8 {[%clk 01:05:35]} {[%emt 00:01:13]} Bxd8 {[%clk 00:41:12]} {[%emt
00:00:01]} 23. Kc1 {[%clk 01:00:20]} {[%emt 00:05:46]} g6 {[%clk 00:39:40]}
{[%emt 00:02:01]} 24. f4 {[%clk 00:58:28]} {[%emt 00:02:21]} Bc7 {[%clk
00:28:48]} {[%emt 00:11:23]} 25. fxe5 {[%clk 00:57:50]} {[%emt 00:01:06]} Bxe5
{[%clk 00:28:25]} {[%emt 00:00:54]} 26. Ne2 {[%clk 00:57:02]} {[%emt 00:01:18]}
Bd7 {[%clk 00:21:10]} {[%emt 00:07:46]} 27. Nd4 {[%clk 00:55:53]} {[%emt
00:01:38]} Bxd4 {[%clk 00:16:05]} {[%emt 00:05:36]} 28. Bxd4 {[%clk 00:56:08]}
{[%emt 00:00:15]} Bc6 {[%clk 00:16:30]} {[%emt 00:00:06]} 29. Bxc6 {[%emt
00:00:45]} Nxc6 1/2-1/2

[Event "NJSK 2018 Meisjes C"]
[Site "Assen, Netherlands"]
[Date "2018.05.03"]
[Round "5.8"]
[White "Velasco, Kathleen"]
[Black "Jonkman Inza, Amelia Marry"]
[Result "1/2-1/2"]
[TimeControl "40/90m+30m+30sec/move"]
[WhiteElo "1284"]
[BlackElo "1222"]

1. e4 {[%clk 01:30:58]} {[%emt 00:00:01]} e6 {[%clk 01:30:56]} {[%emt
00:00:05]} 2. d4 {[%clk 01:31:24]} {[%emt 00:00:04]} d5 {[%clk 01:31:21]}
{[%emt 00:00:05]} 3. exd5 {[%clk 01:31:22]} {[%emt 00:00:32]} exd5 {[%clk
01:31:39]} {[%emt 00:00:11]} 4. Nf3 {[%clk 01:31:46]} {[%emt 00:00:06]} Nf6
{[%clk 01:31:46]} {[%emt 00:00:24]} 5. Bd3 {[%clk 01:32:07]} {[%emt 00:00:09]}
c6 {[%clk 01:30:28]} {[%emt 00:01:48]} 6. Bf4 {[%clk 01:30:40]} {[%emt
00:01:56]} Nbd7 {[%clk 01:23:59]} {[%emt 00:07:00]} 7. O-O {[%clk 01:30:26]}
{[%emt 00:00:43]} Be7 {[%clk 01:23:00]} {[%emt 00:01:30]} 8. Nbd2 {[%clk
01:29:57]} {[%emt 00:00:59]} O-O {[%clk 01:22:28]} {[%emt 00:01:02]} 9. Re1
{[%clk 01:29:42]} {[%emt 00:00:44]} Re8 {[%clk 01:17:10]} {[%emt 00:05:49]} 10.
c3 {[%clk 01:27:53]} {[%emt 00:02:19]} Nf8 {[%clk 01:11:40]} {[%emt 00:06:00]}
11. h3 {[%clk 01:25:09]} {[%emt 00:03:13]} Be6 {[%clk 01:08:50]} {[%emt
00:03:20]} 12. Qc2 {[%clk 01:23:41]} {[%emt 00:01:58]} Rc8 {[%clk 01:07:14]}
{[%emt 00:02:06]} 13. Ng5 {[%clk 01:11:50]} {[%emt 00:12:20]} Bd7 {[%clk
01:04:13]} {[%emt 00:03:32]} 14. Be5 {[%clk 01:07:18]} {[%emt 00:05:03]} Ng6
{[%clk 00:53:01]} {[%emt 00:11:41]} 15. Ndf3 {[%clk 00:54:52]} {[%emt
00:12:55]} Qb6 {[%clk 00:42:32]} {[%emt 00:10:57]} 16. Bxg6 {[%clk 00:30:43]}
{[%emt 00:24:41]} hxg6 {[%clk 00:39:29]} {[%emt 00:03:34]} 17. h4 {[%clk
00:17:22]} {[%emt 00:13:52]} Bf5 {[%clk 00:36:34]} {[%emt 00:03:25]} 18. Qd2
{[%clk 00:15:52]} {[%emt 00:01:59]} Ne4 {[%clk 00:30:00]} {[%emt 00:07:04]} 19.
Nxe4 {[%clk 00:15:52]} {[%emt 00:00:31]} Bxe4 {[%clk 00:30:07]} {[%emt
00:00:22]} 20. Bg3 {[%clk 00:12:19]} {[%emt 00:04:02]} Bxf3 {[%clk 00:26:39]}
{[%emt 00:03:59]} 21. gxf3 {[%clk 00:12:35]} {[%emt 00:00:14]} Bf6 {[%clk
00:23:53]} {[%emt 00:03:17]} 22. Kg2 {[%clk 00:12:33]} {[%emt 00:00:32]} c5
{[%clk 00:16:57]} {[%emt 00:07:26]} 23. dxc5 {[%clk 00:12:21]} {[%emt
00:00:41]} Qxc5 {[%clk 00:16:47]} {[%emt 00:00:41]} 24. Rad1 {[%clk 00:12:09]}
{[%emt 00:00:41]} Rxe1 {[%clk 00:16:19]} {[%emt 00:00:58]} 25. Rxe1 {[%clk
00:10:40]} {[%emt 00:01:59]} d4 {[%clk 00:14:53]} {[%emt 00:01:56]} 26. cxd4
{[%clk 00:10:45]} {[%emt 00:00:24]} Qxd4 {[%clk 00:13:22]} {[%emt 00:02:01]} 27.
Qxd4 {[%clk 00:09:26]} {[%emt 00:01:50]} Bxd4 {[%clk 00:13:32]} {[%emt
00:00:19]} 28. Re7 {[%clk 00:09:47]} {[%emt 00:00:09]} Bxb2 {[%clk 00:11:22]}
{[%emt 00:02:41]} 29. Rxb7 {[%clk 00:09:46]} {[%emt 00:00:31]} Bd4 {[%clk
00:11:40]} {[%emt 00:00:12]} 30. Rc7 {[%clk 00:06:42]} {[%emt 00:03:32]} Rxc7
{[%clk 00:08:12]} {[%emt 00:04:00]} 31. Bxc7 {[%clk 00:06:58]} {[%emt
00:00:13]} Bb6 {[%clk 00:06:33]} {[%emt 00:02:09]} 32. Bd6 {[%clk 00:06:57]}
{[%emt 00:00:31]} f5 {[%clk 00:06:13]} {[%emt 00:00:51]} 33. f4 {[%clk
00:05:53]} {[%emt 00:01:34]} Bd8 {[%clk 00:05:01]} {[%emt 00:01:42]} 34. Kg3
{[%clk 00:04:57]} {[%emt 00:01:25]} Kh7 {[%clk 00:04:06]} {[%emt 00:01:24]} 35.
Bc5 {[%clk 00:04:01]} {[%emt 00:01:26]} a6 {[%clk 00:04:03]} {[%emt 00:00:34]}
36. Bd6 {[%clk 00:04:01]} {[%emt 00:00:31]} Kh6 {[%clk 00:02:51]} {[%emt
00:01:41]} 37. Bf8 {[%clk 00:02:28]} {[%emt 00:02:02]} Bf6 {[%clk 00:02:41]}
{[%emt 00:00:41]} 38. Kh3 {[%clk 00:02:43]} {[%emt 00:00:13]} Kh5 {[%clk
00:01:50]} {[%emt 00:01:22]} 39. f3 {[%clk 00:02:44]} {[%emt 00:00:29]} Bxh4
{[%clk 00:00:43]} {[%emt 00:01:38]} 40. Bxg7 {[%clk 00:02:54]} {[%emt
00:00:20]} Bf2 {[%clk 00:00:54]} {[%emt 00:00:19]} 41. Bf6 {[%clk 00:00:44]}
{[%emt 00:02:40]} Be3 {[%clk 00:00:38]} {[%emt 00:00:47]} 42. Bg5 {[%clk
00:00:59]} {[%emt 00:00:14]} Bf2 {[%clk 00:00:35]} {[%emt 00:00:33]} 43. a3
{[%clk 00:01:02]} {[%emt 00:00:27]} Bc5 {[%clk 00:30:29]} {[%emt 00:00:36]} 44.
a4 {[%clk 00:31:20]} {[%emt 00:00:12]} Be3 {[%clk 00:30:29]} {[%emt 00:00:30]}
45. Kg3 {[%clk 00:31:10]} {[%emt 00:00:33]} Bd2 {[%clk 00:30:26]} {[%emt
00:00:40]} 46. Kf2 {[%clk 00:30:56]} {[%emt 00:00:44]} Bc3 {[%clk 00:30:12]}
{[%emt 00:00:44]} 47. Ke2 {[%clk 00:29:28]} {[%emt 00:01:57]} Bd4 {[%clk
00:29:59]} {[%emt 00:00:44]} 48. Be7 {[%clk 00:29:14]} {[%emt 00:00:44]} Bc3
{[%clk 00:29:26]} {[%emt 00:01:03]} 49. Bg5 {[%clk 00:26:44]} {[%emt 00:03:00]}
Bd4 {[%clk 00:29:06]} {[%emt 00:00:50]} 50. Kd3 {[%emt 00:01:39]} Bg1 51. Ke2
{[%emt 00:00:04]} Bh2 52. Kf2 {[%clk 00:23:50]} {[%emt 00:00:03]} 1/2-1/2

[Event "NJSK 2018 Meisjes C"]
[Site "Assen, Netherlands"]
[Date "2018.05.04"]
[Round "6.1"]
[White "Huang, Wendy"]
[Black "Bogouslavskii, Veronique"]
[Result "1/2-1/2"]
[TimeControl "40/90m+30m+30sec/move"]
[WhiteElo "1572"]
[BlackElo "1004"]

1. e4 {[%clk 01:30:58]} {[%emt 00:00:02]} e5 {[%clk 01:30:56]} {[%emt
00:00:05]} 2. Nf3 {[%clk 01:31:21]} {[%emt 00:00:06]} Nc6 {[%clk 01:31:19]}
{[%emt 00:00:07]} 3. Bc4 {[%clk 01:31:46]} {[%emt 00:00:05]} Be7 {[%clk
01:31:43]} {[%emt 00:00:06]} 4. d4 {[%clk 01:32:04]} {[%emt 00:00:12]} d6
{[%clk 01:32:05]} {[%emt 00:00:08]} 5. dxe5 {[%clk 01:32:17]} {[%emt 00:00:18]}
dxe5 {[%clk 01:32:22]} {[%emt 00:00:12]} 6. Qxd8+ {[%clk 01:32:37]} {[%emt
00:00:11]} Bxd8 {[%clk 01:32:42]} {[%emt 00:00:10]} 7. Nc3 {[%clk 01:32:19]}
{[%emt 00:00:47]} Nf6 {[%clk 01:32:50]} {[%emt 00:00:22]} 8. Bb5 {[%clk
01:31:25]} {[%emt 00:01:26]} Bd7 {[%clk 01:26:47]} {[%emt 00:06:32]} 9. Bg5
{[%clk 01:29:28]} {[%emt 00:02:27]} Nd4 {[%clk 01:24:09]} {[%emt 00:03:09]} 10.
Bxd7+ {[%clk 01:24:35]} {[%emt 00:05:22]} Nxd7 {[%clk 01:24:21]} {[%emt
00:00:18]} 11. O-O-O {[%clk 01:13:55]} {[%emt 00:11:10]} Nxf3 {[%clk 01:23:05]}
{[%emt 00:01:47]} 12. Bxd8 {[%clk 01:14:12]} {[%emt 00:00:13]} Rxd8 {[%clk
01:23:07]} {[%emt 00:00:27]} 13. gxf3 {[%clk 01:14:35]} {[%emt 00:00:07]} c6
{[%clk 01:16:26]} {[%emt 00:07:12]} 14. Ne2 {[%clk 01:13:30]} {[%emt 00:01:34]}
O-O {[%clk 01:14:14]} {[%emt 00:02:42]} 15. Rd6 {[%clk 01:11:11]} {[%emt
00:02:49]} Nf6 {[%clk 01:12:52]} {[%emt 00:01:52]} 16. Rhd1 {[%clk 01:11:00]}
{[%emt 00:00:42]} Rxd6 {[%clk 01:11:56]} {[%emt 00:01:25]} 17. Rxd6 {[%clk
01:11:21]} {[%emt 00:00:09]} Re8 {[%clk 01:11:23]} {[%emt 00:01:03]} 18. Ng3
{[%clk 01:11:01]} {[%emt 00:00:50]} Kf8 {[%clk 01:05:34]} {[%emt 00:06:19]} 19.
Nf5 {[%clk 01:10:39]} {[%emt 00:00:52]} Rc8 {[%clk 00:56:16]} {[%emt 00:09:48]}
20. Kd2 {[%clk 01:05:52]} {[%emt 00:05:17]} Rb8 {[%clk 00:46:26]} {[%emt
00:10:20]} 21. Ke3 {[%clk 01:04:29]} {[%emt 00:01:52]} Ne8 {[%clk 00:44:29]}
{[%emt 00:02:28]} 22. Rd7 {[%clk 01:03:17]} {[%emt 00:01:42]} Nf6 {[%clk
00:44:23]} {[%emt 00:00:36]} 23. Rd6 {[%clk 00:56:25]} {[%emt 00:07:21]} Ne8
{[%clk 00:44:25]} {[%emt 00:00:30]} 24. Rd3 {[%clk 00:55:26]} {[%emt 00:01:28]}
g6 {[%clk 00:42:23]} {[%emt 00:02:32]} 25. Nd6 {[%clk 00:54:15]} {[%emt
00:01:41]} Nxd6 {[%clk 00:41:19]} {[%emt 00:01:34]} 26. Rxd6 {[%clk 00:54:35]}
{[%emt 00:00:10]} Ke7 {[%clk 00:41:34]} {[%emt 00:00:15]} 27. Rd1 {[%clk
00:54:29]} {[%emt 00:00:36]} Ke6 {[%clk 00:41:25]} {[%emt 00:00:39]} 28. f4
{[%clk 00:54:16]} {[%emt 00:00:43]} exf4+ {[%clk 00:39:08]} {[%emt 00:02:46]}
29. Kxf4 {[%clk 00:54:38]} {[%emt 00:00:09]} f6 {[%clk 00:39:06]} {[%emt
00:00:32]} 30. h4 {[%clk 00:54:06]} {[%emt 00:01:02]} Rg8 {[%clk 00:37:47]}
{[%emt 00:01:49]} 31. Ke3 {[%clk 00:53:41]} {[%emt 00:00:56]} b6 {[%clk
00:29:10]} {[%emt 00:09:06]} 32. c3 {[%clk 00:52:47]} {[%emt 00:01:25]} h6
{[%clk 00:22:03]} {[%emt 00:07:36]} 33. f4 {[%clk 00:50:23]} {[%emt 00:02:54]}
g5 {[%clk 00:04:53]} {[%emt 00:17:41]} 34. fxg5 {[%clk 00:49:50]} {[%emt
00:01:02]} fxg5 {[%clk 00:05:06]} {[%emt 00:00:17]} 35. Rg1 {[%clk 00:49:56]}
{[%emt 00:00:23]} Ke5 {[%clk 00:04:38]} {[%emt 00:00:59]} 36. Rg2 {[%clk
00:48:09]} {[%emt 00:02:17]} g4 {[%clk 00:00:38]} {[%emt 00:04:31]} 37. b3
{[%clk 00:47:40]} {[%emt 00:00:58]} h5 {[%clk 00:00:48]} {[%emt 00:00:21]} 38.
Rf2 {[%clk 00:47:55]} {[%emt 00:00:15]} Ke6 {[%emt 00:03:13]} 1/2-1/2